fUSD/lending_fUSD_20260128
["ID","MTS","AMOUNT","RATE_DAILY","PERIOD"]
[403839446,1769586639946,-500.0,0.00014602,2]
[403839447,1769586639956,-150.0,0.00014602,2]
[403839448,1769586639966,-195.0,0.00014631,2]
[403839449,1769586639979,-150.0,0.00014633,2]
[403839450,1769586639988,-500.0,0.00014633,2]
[403839451,1769586639997,-503.21249017,0.00014633,2]
[403839452,1769586640007,-500.0,0.00014633,2]
[403839453,1769586640020,-500.0,0.00014633,2]
[403839454,1769586640029,-500.0,0.00014633,2]
[403839455,1769586640039,-500.0,0.00014633,2]
[403839456,1769586640048,-500.0,0.00014656,2]
[403839457,1769586640059,-500.0,0.00014656,2]
[403839458,1769586640067,-500.0,0.00014656,2]
[403839459,1769586640077,-210.67755225,0.00014656,2]
[403839460,1769586640086,-500.0,0.00014656,2]
[403839461,1769586640097,-1000.0,0.00014667,2]
[403839462,1769586640107,-11280.7361,0.00014667,2]
[403839463,1769586640118,-2500.0,0.00014667,2]
[403839464,1769586640128,-33266.4327,0.00014667,2]
[403839465,1769586640138,-150.0,0.00014688,2]
[403839466,1769586640148,-506.89681003,0.00014688,2]
[403839467,1769586640158,-500.0,0.00014688,2]
[403839468,1769586640167,-500.0,0.00014688,2]
[403839470,1769586640176,-500.0,0.00014688,2]
[403839471,1769586640186,-500.0,0.00014688,2]
[403839472,1769586640196,-6736.19476152,0.00014694,2]
[403839473,1769586640206,-300.0,0.00014711,2]
[403839474,1769586640219,-500.0,0.00014711,2]
[403839475,1769586640229,-500.0,0.00014711,2]
[403839476,1769586640239,-500.0,0.00014711,2]
[403839477,1769586640248,-500.0,0.00014711,2]
[403839478,1769586640258,-445.90348059,0.00014715,2]
[403839479,1769586640268,-304.738324,0.0001472,2]
[403839480,1769586640278,-300.0,0.00014725,2]
[403839481,1769586640288,-433.90461493,0.00014725,2]
[403839482,1769586640297,-500.0,0.00014725,2]
[403839483,1769586640307,-5717.41,0.00014728,2]
[403839484,1769586640317,-150.0,0.00014739,2]
[403839485,1769586640326,-500.0,0.00014739,2]
[403839486,1769586640336,-150.0,0.00014739,2]
[403839487,1769586640346,-150.0,0.00014739,2]
[403839488,1769586640356,-500.0,0.00014739,2]
[403839489,1769586640365,-150.0,0.00014739,2]
[403839490,1769586640375,-150.0,0.00014739,2]
[403839491,1769586640385,-150.0,0.00014739,2]
[403839492,1769586640395,-150.0,0.00014739,2]
[403839493,1769586640405,-500.0,0.00014739,2]
[403839494,1769586640417,-500.0,0.00014739,2]
[403839495,1769586640427,-930.0,0.00014739,2]
[403839496,1769586640439,-150.0,0.00014739,2]
[403839497,1769586640448,-500.0,0.00014739,2]
[403839498,1769586640458,-213.25042822,0.00014739,2]
[403839499,1769586640468,-150.0,0.00014739,2]
[403839500,1769586640480,-500.0,0.00014739,2]
[403839501,1769586640490,-150.0,0.00014739,2]
[403839502,1769586640500,-150.0,0.00014739,2]
[403839503,1769586640511,-150.0,0.00014739,2]
[403839504,1769586640521,-150.0,0.00014739,2]
[403839505,1769586640532,-500.0,0.00014739,2]
[403839506,1769586640541,-500.0,0.00014739,2]
[403839507,1769586640551,-150.0,0.00014739,2]
[403839508,1769586640560,-150.0,0.00014739,2]
[403839509,1769586640570,-985.88,0.00014739,2]
[403839510,1769586640579,-150.0,0.00014742,2]
[403839511,1769586640588,-500.0,0.00014742,2]
[403839512,1769586640598,-500.0,0.00014742,2]
[403839513,1769586640607,-500.0,0.00014742,2]
[403839514,1769586640617,-500.0,0.00014742,2]
[403839515,1769586640626,-200.0,0.00014758,2]
[403839516,1769586640636,-206.24263098,0.00014758,2]
[403839517,1769586640646,-500.0,0.00014758,2]
[403839518,1769586640655,-150.0,0.00014766,2]
[403839519,1769586640665,-500.0,0.00014766,2]
[403839520,1769586640678,-500.0,0.00014766,2]
[403839521,1769586640687,-500.0,0.00014766,2]
[403839522,1769586640697,-500.0,0.00014766,2]
[403839523,1769586640707,-500.0,0.00014766,2]
[403839524,1769586640719,-500.0,0.00014766,2]
[403839525,1769586640729,-500.0,0.00014766,2]
[403839526,1769586640739,-500.0,0.00014766,2]
[403839527,1769586640753,-500.0,0.00014766,2]
[403839528,1769586640763,-500.0,0.00014766,2]
[403839529,1769586640776,-150.00001483,0.00014766,2]
[403839530,1769586640785,-150.0,0.00014794,2]
[403839531,1769586640795,-500.0,0.00014794,2]
[403839532,1769586640812,-150.0,0.00014794,2]
[403839533,1769586640826,-500.0,0.00014794,2]
[403839534,1769586640836,-150.0,0.00014794,2]
[403839535,1769586640848,-150.0,0.00014794,2]
[403839536,1769586640858,-500.0,0.00014794,2]
[403839537,1769586640867,-500.0,0.00014794,2]
[403839538,1769586640878,-930.0,0.00014794,2]
[403839539,1769586640889,-500.0,0.00014794,2]
[403839540,1769586640900,-500.0,0.00014794,2]
[403839541,1769586640909,-243.9850094,0.00014794,2]
[403839542,1769586640920,-150.0,0.00014794,2]
[403839543,1769586640930,-150.0,0.00014794,2]
[403839544,1769586640939,-200.0,0.00014794,2]
[403839545,1769586640950,-500.0,0.00014794,2]
[403839546,1769586640960,-500.0,0.00014794,2]
[403839547,1769586640969,-150.0,0.00014794,2]
[403839548,1769586640979,-203.87163982,0.00014794,2]
[403839549,1769586640988,-150.0,0.00014797,2]
[403839550,1769586640997,-500.0,0.00014797,2]
[403839551,1769586641008,-500.0,0.00014797,2]
[403839552,1769586641017,-500.0,0.00014797,2]
[403839553,1769586641027,-500.0,0.00014797,2]
[403839554,1769586641036,-500.0,0.00014821,2]
[403839555,1769586641046,-500.0,0.00014821,2]
[403839556,1769586641055,-1798.0,0.00014847,2]
[403839557,1769586641065,-150.0,0.00014849,2]
[403839558,1769586641074,-500.0,0.00014849,2]
[403839559,1769586641083,-200.0,0.00014849,2]
[403839560,1769586641093,-500.0,0.00014849,2]
[403839561,1769586641102,-150.0,0.00014849,2]
[403839562,1769586641112,-150.0,0.00014849,2]
[403839563,1769586641121,-500.0,0.00014849,2]
[403839564,1769586641131,-500.0,0.00014849,2]
[403839565,1769586641141,-930.0,0.00014849,2]
[403839566,1769586641150,-500.0,0.00014849,2]
[403839567,1769586641163,-500.0,0.00014849,2]
[403839568,1769586641173,-150.0,0.00014849,2]
[403839569,1769586641184,-500.0,0.00014849,2]
[403839570,1769586641194,-500.0,0.00014849,2]
[403839571,1769586641204,-150.0,0.00014849,2]
[403839572,1769586641213,-181.4338574,0.00014852,2]
[403839573,1769586641222,-500.0,0.00014852,2]
[403839574,1769586641232,-500.0,0.00014852,2]
[403839575,1769586641242,-500.0,0.00014852,2]
[403839576,1769586641252,-500.0,0.00014852,2]
[403839577,1769586641262,-222.7140054,0.00014852,2]
[403839578,1769586641271,-500.0,0.00014852,2]
[403839579,1769586641287,-17126.153831,0.00014858,2]
[403839580,1769586641298,-500.0,0.00014866,2]
[403839581,1769586641308,-500.0,0.00014866,2]
[403839582,1769586641317,-394.52625559,0.00014866,2]
[403839583,1769586641327,-500.0,0.00014866,2]
[403839584,1769586641337,-500.0,0.00014866,2]
[403839585,1769586641348,-500.0,0.00014866,2]
[403839586,1769586641357,-479.19347952,0.00014866,2]
[403839587,1769586641367,-500.0,0.00014866,2]
[403839588,1769586641376,-500.0,0.00014866,2]
[403839589,1769586641385,-208.46996814,0.00014866,2]
[403839590,1769586641395,-500.0,0.00014866,2]
[403839591,1769586641404,-500.0,0.00014866,2]
[403839592,1769586641413,-500.0,0.00014866,2]
[403839593,1769586641426,-500.0,0.00014866,2]
[403839594,1769586641435,-500.0,0.00014866,2]
[403839595,1769586641444,-500.0,0.00014866,2]
[403839596,1769586641454,-560.97832733,0.00014866,2]
[403839597,1769586641463,-500.0,0.00014866,2]
[403839598,1769586641472,-500.0,0.00014866,2]
[403839599,1769586641482,-355.21403355,0.00014866,2]
[403839600,1769586641492,-500.0,0.00014866,2]
[403839601,1769586641501,-500.0,0.00014866,2]
[403839602,1769586641511,-500.0,0.00014866,2]
[403839603,1769586641520,-508.81411293,0.00014866,2]
[403839604,1769586641530,-500.0,0.00014866,2]
[403839605,1769586641539,-500.0,0.00014866,2]
[403839606,1769586641548,-500.0,0.00014866,2]
[403839607,1769586641559,-509.24863129,0.00014866,2]
[403839608,1769586641568,-623.96318199,0.00014866,2]
[403839609,1769586641578,-500.0,0.00014866,2]
[403839610,1769586641588,-500.0,0.00014866,2]
[403839611,1769586642050,-500.0,0.00014866,2]
[403839612,1769586642060,-500.0,0.00014866,2]
[403839613,1769586642069,-500.0,0.00014866,2]
[403839614,1769586642078,-500.0,0.00014866,2]
[403839615,1769586642088,-261.56434182,0.00014866,2]
[403839616,1769586642099,-500.0,0.00014866,2]
[403839617,1769586642108,-500.0,0.00014866,2]
[403839618,1769586642117,-500.0,0.00014866,2]
[403839619,1769586642127,-500.0,0.00014866,2]
[403839620,1769586642138,-511.31408016,0.00014866,2]
[403839621,1769586642148,-528.82732304,0.00014866,2]
[403839622,1769586642159,-500.0,0.00014866,2]
[403839623,1769586642168,-500.0,0.00014866,2]
[403839624,1769586642178,-500.0,0.00014866,2]
[403839625,1769586642188,-500.0,0.00014866,2]
[403839626,1769586642198,-381.27558424,0.00014866,2]
[403839627,1769586642208,-505.07555543,0.00014866,2]
[403839628,1769586642217,-500.0,0.00014866,2]
[403839629,1769586642227,-500.0,0.00014866,2]
[403839630,1769586642237,-265.38774742,0.00014866,2]
[403839631,1769586642247,-500.0,0.00014866,2]
[403839632,1769586642257,-504.97053901,0.00014866,2]
[403839633,1769586642268,-500.0,0.00014866,2]
[403839634,1769586642278,-500.0,0.00014866,2]
[403839635,1769586642289,-500.0,0.00014866,2]
[403839636,1769586642298,-504.91559011,0.00014866,2]
[403839637,1769586642308,-500.0,0.00014866,2]
[403839638,1769586642318,-537.84011812,0.00014866,2]
[403839639,1769586642328,-500.0,0.00014866,2]
[403839640,1769586642338,-500.0,0.00014866,2]
[403839641,1769586642347,-500.0,0.00014866,2]
[403839642,1769586642356,-500.0,0.00014866,2]
[403839643,1769586642366,-500.0,0.00014866,2]
[403839644,1769586642375,-500.0,0.00014866,2]
[403839645,1769586642384,-500.0,0.00014866,2]
[403839646,1769586642394,-500.0,0.00014876,2]
[403839647,1769586642403,-500.0,0.00014876,2]
[403839649,1769586642412,-1136.0,0.00014876,2]
[403839650,1769586642421,-10000.0,0.000149,2]
[403839651,1769586642431,-215.63318921,0.00014903,2]
[403839652,1769586642440,-500.0,0.00014903,2]
[403839653,1769586642449,-500.0,0.00014903,2]
[403839654,1769586642461,-150.0,0.00014903,2]
[403839655,1769586642471,-150.0,0.00014903,2]
[403839656,1769586642480,-500.0,0.00014903,2]
[403839657,1769586642489,-500.0,0.00014903,2]
[403839658,1769586642498,-930.0,0.00014903,2]
[403839659,1769586642507,-500.0,0.00014903,2]
[403839660,1769586642516,-628.19090217,0.00014903,2]
[403839661,1769586642526,-200.0,0.00014903,2]
[403839662,1769586642535,-500.0,0.00014903,2]
[403839663,1769586642544,-500.0,0.00014903,2]
[403839664,1769586642553,-197.11274322,0.00014903,2]
[403839665,1769586642563,-1448.0,0.00014906,2]
[403839666,1769586642572,-500.0,0.00014907,2]
[403839667,1769586642581,-500.0,0.00014907,2]
[403839669,1769586642591,-500.0,0.00014907,2]
[403839671,1769586642601,-268.65019643,0.00014907,2]
[403839673,1769586642610,-500.0,0.0001493,2]
[403839674,1769586642620,-507.52129439,0.0001493,2]
[403839675,1769586642630,-419.0,0.00014931,2]
[403839677,1769586642640,-500.0,0.00014958,2]
[403839679,1769586642649,-500.0,0.00014958,2]
[403839680,1769586642658,-150.0,0.00014958,2]
[403839681,1769586642669,-277.38838793,0.00014958,2]
[403839682,1769586642680,-500.0,0.00014958,2]
[403839683,1769586642690,-500.0,0.00014958,2]
[403839684,1769586642699,-930.0,0.00014958,2]
[403839685,1769586642708,-500.0,0.00014958,2]
[403839686,1769586642718,-400.0,0.00014958,2]
[403839687,1769586642728,-500.0,0.00014958,2]
[403839688,1769586642737,-500.0,0.00014962,2]
[403839689,1769586642748,-500.0,0.00014962,2]
[403839690,1769586642757,-500.0,0.00014962,2]
[403839691,1769586642766,-1610.22623214,0.00014984,2]
[403839692,1769586642776,-263.0,0.00014984,2]
[403839693,1769586642785,-500.0,0.00014985,2]
[403839694,1769586642794,-500.0,0.00014999,2]
[403839695,1769586642803,-556.24166165,0.00015,2]
[403839696,1769586642813,-18402.35142101,0.00015,2]
[403839697,1769586642822,-500.0,0.00015013,2]
[403839698,1769586642831,-500.0,0.00015013,2]
[403839699,1769586642840,-250.0,0.00015013,2]
[403839700,1769586642849,-500.0,0.00015013,2]
[403839701,1769586642859,-173.82378677,0.00015013,2]
[403839702,1769586642869,-930.0,0.00015013,2]
[403839703,1769586642878,-500.0,0.00015013,2]
[403839704,1769586642889,-500.0,0.00015013,2]
[403839705,1769586642898,-985.88,0.00015013,2]
[403839706,1769586642907,-500.0,0.00015016,2]
[403839707,1769586642916,-500.0,0.00015016,2]
[403839708,1769586642926,-500.0,0.00015016,2]
[403839709,1769586642935,-617.0,0.00015027,2]
[403839710,1769586642944,-177.0,0.00015027,2]
[403839711,1769586642953,-500.0,0.0001504,2]
[403839712,1769586642962,-432.0,0.0001504,2]
[403839713,1769586642971,-171.4620376,0.0001504,2]
[403839714,1769586642980,-16015.87176145,0.0001505,2]
[403839715,1769586642990,-500.0,0.00015068,2]
[403839716,1769586642999,-500.0,0.00015068,2]
[403839717,1769586643008,-500.0,0.00015068,2]
[403839718,1769586643018,-930.0,0.00015068,2]
[403839719,1769586643027,-261.65460803,0.00015068,2]
[403839720,1769586643037,-500.0,0.00015068,2]
[403839721,1769586643047,-500.0,0.00015071,2]
[403839722,1769586643056,-500.0,0.00015071,2]
[403839723,1769586643067,-500.0,0.00015071,2]
[403839724,1769586643076,-500.0,0.00015095,2]
[403839725,1769586643085,-500.0,0.00015123,2]
[403839726,1769586643095,-363.51122534,0.00015123,2]
[403839727,1769586643104,-500.0,0.00015123,2]
[403839728,1769586643113,-930.0,0.00015123,2]
[403839729,1769586643123,-500.0,0.00015123,2]
[403839730,1769586643133,-500.0,0.00015126,2]
[403839731,1769586643143,-260.0,0.00015126,2]
[403839732,1769586643153,-500.0,0.00015126,2]
[403839733,1769586643163,-500.0,0.0001515,2]
[403839734,1769586643172,-262.32249886,0.00015177,2]
[403839735,1769586643181,-500.0,0.00015177,2]
[403839736,1769586643190,-930.0,0.00015177,2]
[403839737,1769586643199,-151.0,0.00015179,2]
[403839738,1769586643209,-526.50115977,0.00015181,2]
[403839739,1769586643218,-500.0,0.00015181,2]
[403839740,1769586643227,-151.0,0.00015181,2]
[403839741,1769586643236,-220.71,0.00015211,2]
[403839742,1769586643247,-500.0,0.00015232,2]
[403839743,1769586643256,-930.0,0.00015232,2]
[403839744,1769586643267,-500.0,0.00015236,2]
[403839745,1769586643277,-17126.153831,0.00015238,2]
[403839746,1769586643286,-151.49,0.0001524,2]
[403839747,1769586643295,-151.0,0.0001524,2]
[403839748,1769586643304,-151.0,0.00015244,2]
[403839749,1769586643314,-151.0,0.00015245,2]
[403839750,1769586643323,-539.13168515,0.00015267,2]
[403839751,1769586643333,-500.0,0.00015273,2]
[403839752,1769586643344,-500.0,0.00015287,2]
[403839753,1769586643354,-930.0,0.00015287,2]
[403839754,1769586643363,-985.88,0.00015287,2]
[403839755,1769586643373,-500.0,0.0001529,2]
[403839756,1769586643383,-362.5,0.000153,2]
[403839757,1769586643392,-262.55520896,0.000153,2]
[403839758,1769586643401,-500.0,0.00015306,2]
[403839759,1769586643411,-19999.99,0.0001531,2]
[403839760,1769586643420,-500.0,0.00015342,2]
[403839761,1769586643430,-930.0,0.00015342,2]
[403839762,1769586643440,-500.0,0.00015345,2]
[403839763,1769586643449,-500.0,0.00015397,2]
[403839764,1769586643460,-930.0,0.00015397,2]
[403839765,1769586643470,-500.0,0.000154,2]
[403839766,1769586643479,-16015.87176145,0.00015406,2]
[403839767,1769586643489,-500.0,0.00015451,2]
[403839768,1769586643498,-930.0,0.00015451,2]
[403839769,1769586643508,-500.0,0.00015455,2]
[403839770,1769586643517,-200.0,0.000155,2]
[403839771,1769586643527,-500.0,0.00015506,2]
[403839772,1769586643536,-930.0,0.00015506,2]
[403839773,1769586643546,-179.52186183,0.0001551,2]
[403839774,1769586643554,-237.31,0.00015533,2]
[403839775,1769586643564,-500.0,0.00015547,2]
[403839776,1769586643573,-500.0,0.00015561,2]
[403839777,1769586643582,-930.0,0.00015561,2]
[403839778,1769586643591,-985.88,0.00015561,2]
[403839779,1769586643600,-500.0,0.00015616,2]
[403839780,1769586643610,-930.0,0.00015616,2]
[403839781,1769586643620,-17126.153831,0.00015619,2]
[403839782,1769586643629,-502.0,0.00015644,2]
[403839783,1769586643638,-1000.0,0.00015648,2]
[403839784,1769586643648,-200.0,0.00015655,2]
[403839785,1769586643658,-376.8397115,0.00015671,2]
[403839786,1769586643669,-930.0,0.00015671,2]
[403839787,1769586643678,-225.4,0.00015681,2]
[403839788,1769586643688,-255.0,0.00015688,2]
[403839789,1769586643698,-1176.74634017,0.00015715,2]
[403839790,1769586643708,-930.0,0.00015725,2]
[403839791,1769586643718,-16015.87176145,0.00015763,2]
[403839792,1769586643728,-930.0,0.0001578,2]
[403839793,1769586643739,-200.0,0.00015812,2]
[403839794,1769586643748,-500.0,0.00015821,2]
[403839795,1769586643760,-930.0,0.00015835,2]
[403839796,1769586643770,-985.88,0.00015835,2]
[403839797,1769586643780,-503.77912883,0.00015854,2]
[403839798,1769586643790,-930.0,0.0001589,2]
[403839799,1769586643802,-1600.0,0.000159,5]
[403839800,1769586643812,-576.03,0.00015931,2]
[403839801,1769586643821,-930.0,0.00015944,2]
[403839802,1769586643830,-17126.153831,0.00015999,2]
[403839803,1769586643840,-500.0,0.00015999,2]
[403839804,1769586643849,-500.0,0.00015999,2]
[403839805,1769586643858,-500.0,0.00015999,2]
[403839806,1769586643867,-500.0,0.00015999,2]
[403839807,1769586643877,-500.0,0.00015999,2]
[403839808,1769586643885,-500.0,0.00015999,2]
[403839809,1769586643894,-500.0,0.00015999,2]
[403839810,1769586643904,-500.0,0.00015999,2]
[403839811,1769586643914,-951.97388167,0.00015999,2]
[403839812,1769586643924,-76226.08254956,0.00016,4]
[403839813,1769586643933,-10006.0,0.00016,2]
[403839814,1769586643942,-1680.0,0.00016023,2]
[403839815,1769586643952,-195.0,0.00016024,2]
[403839816,1769586643961,-600.0,0.00016024,2]
[403839817,1769586643971,-250.0,0.00016024,2]
[403839818,1769586643981,-2500.0,0.00016024,2]
[403839819,1769586643991,-522.13176756,0.00016034,2]
[403839820,1769586644001,-508.90679538,0.00016095,2]
[403839821,1769586644011,-985.88,0.00016109,2]
[403839822,1769586644022,-16015.87176145,0.00016119,2]
[403839823,1769586644033,-302.44852871,0.00016134,2]
[403839824,1769586644043,-250.0,0.00016134,2]
[403839825,1769586644054,-150.00001483,0.0001616,2]
[403839826,1769586644065,-600.0,0.00016163,2]
[403839827,1769586644075,-577.07952906,0.00016163,2]
[403839828,1769586644084,-300.0,0.00016163,2]
[403839829,1769586644094,-5075.37527096,0.00016163,2]
[403839830,1769586644103,-193.0,0.00016163,2]
[403839831,1769586644113,-304.40343656,0.00016163,2]
[403839832,1769586644123,-195.0,0.00016163,2]
[403839833,1769586644132,-600.0,0.00016163,2]
[403839834,1769586644141,-2500.0,0.00016163,2]
[403839835,1769586644150,-2075.92002826,0.00016215,2]
[403839836,1769586644160,-3105.45220965,0.00016215,2]
[403839837,1769586644170,-4201.7778,0.00016215,2]
[403839838,1769586644180,-162.14,0.00016358,2]
[403839839,1769586644190,-502.97428002,0.00016373,2]
[403839840,1769586644201,-501.53607282,0.00016373,2]
[403839841,1769586644213,-500.0,0.00016373,2]
[403839842,1769586644223,-160.1775309,0.00016373,2]
[403839843,1769586644232,-502.66827993,0.00016373,2]
[403839844,1769586644241,-173.57092729,0.00016373,2]
[403839845,1769586644251,-500.0,0.00016373,2]
[403839846,1769586644259,-160.17647728,0.00016373,2]
[403839847,1769586644268,-539.78935463,0.00016373,2]
[403839848,1769586644278,-500.0,0.00016373,2]
[403839849,1769586644287,-156.16956457,0.00016373,2]
[403839850,1769586644296,-193.55647902,0.00016373,2]
[403839851,1769586644305,-501.79128109,0.00016373,2]
[403839852,1769586644315,-500.93042604,0.00016373,2]
[403839854,1769586644325,-17126.153831,0.00016379,2]
[403839855,1769586644334,-985.88,0.00016383,2]
[403839856,1769586644343,-2395.93,0.00016438,2]
[403839857,1769586644352,-2395.93,0.00016438,2]
[403839858,1769586644362,-2395.93,0.00016438,2]
[403839859,1769586644373,-2395.93,0.00016438,2]
[403839860,1769586644383,-2395.93,0.00016438,2]
[403839861,1769586644392,-2395.93,0.00016438,2]
[403839862,1769586644402,-2395.93,0.00016438,2]
[403839863,1769586644411,-2395.93,0.00016438,2]
[403839864,1769586644420,-2395.93,0.00016438,2]
[403839865,1769586644429,-2395.93,0.00016438,2]
[403839866,1769586644439,-2395.93,0.00016438,2]
[403839867,1769586644450,-2395.93,0.00016438,2]
[403839868,1769586644461,-2395.93,0.00016438,2]
[403839869,1769586644470,-2395.93,0.00016438,2]
[403839870,1769586644479,-2395.93,0.00016438,2]
[403839871,1769586644488,-2395.93,0.00016438,2]
[403839872,1769586644497,-2395.93,0.00016438,2]
[403839873,1769586644507,-2395.93,0.00016438,2]
[403839874,1769586644517,-2395.93,0.00016438,2]
[403839875,1769586644527,-2395.93,0.00016438,2]
[403839876,1769586644537,-2395.93,0.00016438,2]
[403839877,1769586644546,-2395.93,0.00016438,2]
[403839878,1769586644557,-2395.93,0.00016438,2]
[403839879,1769586644566,-2396.0314044,0.00016438,2]
[403839880,1769586644576,-544.60815205,0.00016438,2]
[403839881,1769586644586,-500.0,0.00016438,2]
[403839882,1769586644596,-578.39080156,0.00016438,2]
[403839883,1769586644606,-500.0,0.00016438,2]
[403839884,1769586644615,-500.0,0.00016438,2]
[403839886,1769586644624,-500.0,0.00016438,2]
[403839887,1769586644634,-500.0,0.00016438,2]
[403839888,1769586644643,-500.0,0.00016438,2]
[403839889,1769586644652,-500.0,0.00016438,2]
[403839890,1769586644661,-500.0,0.00016438,2]
[403839892,1769586644672,-500.0,0.00016438,2]
[403839894,1769586644682,-500.0,0.00016438,2]
[403839895,1769586644691,-500.0,0.00016438,2]
[403839896,1769586644700,-500.0,0.00016438,2]
[403839897,1769586644710,-500.0,0.00016438,2]
[403839898,1769586644720,-500.0,0.00016438,2]
[403839899,1769586644730,-500.0,0.00016438,2]
[403839900,1769586644740,-500.0,0.00016438,2]
[403839901,1769586644752,-500.0,0.00016438,2]
[403839902,1769586644761,-500.0,0.00016438,2]
[403839903,1769586644773,-500.0,0.00016438,2]
[403839904,1769586644783,-500.0,0.00016438,2]
[403839905,1769586644792,-500.0,0.00016438,2]
[403839907,1769586644801,-500.0,0.00016438,2]
[403839909,1769586644812,-500.0,0.00016438,2]
[403839911,1769586644822,-500.0,0.00016438,2]
[403839913,1769586644831,-500.0,0.00016438,2]
[403839915,1769586644840,-500.0,0.00016438,2]
[403839916,1769586644848,-500.0,0.00016438,2]
[403839917,1769586644859,-500.0,0.00016438,2]
[403839918,1769586644868,-500.0,0.00016438,2]
[403839919,1769586644878,-500.0,0.00016438,2]
[403839920,1769586644887,-500.0,0.00016438,2]
[403839921,1769586644896,-500.0,0.00016438,2]
[403839922,1769586644905,-500.0,0.00016438,2]
[403839923,1769586644916,-500.0,0.00016438,2]
[403839924,1769586644926,-500.0,0.00016438,2]
[403839925,1769586644936,-500.0,0.00016438,2]
[403839926,1769586644947,-500.0,0.00016438,2]
[403839927,1769586644956,-500.0,0.00016438,2]
[403839928,1769586644967,-500.0,0.00016438,2]
[403839929,1769586644975,-500.0,0.00016438,2]
[403839930,1769586644984,-500.0,0.00016438,2]
[403839931,1769586644996,-500.0,0.00016438,2]
[403839932,1769586645006,-500.0,0.00016438,2]
[403839933,1769586645016,-500.0,0.00016438,2]
[403839934,1769586645027,-500.0,0.00016438,2]
[403839935,1769586645036,-500.0,0.00016438,2]
[403839936,1769586645047,-500.0,0.00016438,2]
[403839937,1769586645057,-500.0,0.00016438,2]
[403839938,1769586645069,-500.0,0.00016438,2]
[403839939,1769586645081,-500.0,0.00016438,2]
[403839940,1769586645090,-500.0,0.00016438,2]
[403839941,1769586645100,-500.0,0.00016438,2]
[403839942,1769586645109,-500.0,0.00016438,2]
[403839943,1769586645119,-500.0,0.00016438,2]
[403839944,1769586645130,-154.15147269,0.00016438,2]
[403839945,1769586645139,-500.0,0.00016438,2]
[403839946,1769586645148,-500.0,0.00016438,2]
[403839947,1769586645159,-500.0,0.00016438,2]
[403839948,1769586645168,-500.0,0.00016438,2]
[403839949,1769586645178,-500.0,0.00016438,2]
[403839950,1769586645188,-500.0,0.00016438,2]
[403839951,1769586645199,-500.0,0.00016438,2]
[403839952,1769586645208,-500.0,0.00016438,2]
[403839953,1769586645217,-500.0,0.00016438,2]
[403839954,1769586645227,-500.0,0.00016438,2]
[403839955,1769586645236,-500.0,0.00016438,2]
[403839956,1769586645245,-500.0,0.00016438,2]
[403839957,1769586645255,-500.0,0.00016438,2]
[403839958,1769586645267,-500.0,0.00016438,2]
[403839959,1769586645278,-500.0,0.00016438,2]
[403839960,1769586645288,-500.0,0.00016438,2]
[403839961,1769586645299,-500.0,0.00016438,2]